fUSD/lending_fUSD_20240606
["ID","MTS","AMOUNT","RATE_DAILY","PERIOD"]
[328673216,1717690244185,-1025.31,0.00028767,4]
[328673218,1717690244194,-620.2,0.00028767,4]
[328673220,1717690244205,-500.0,0.00028767,4]
[328673222,1717690244214,-500.0,0.00028767,4]
[328673224,1717690244224,-784.1,0.00028767,4]
[328673226,1717690244233,-515.35,0.00028767,4]
[328673228,1717690244242,-500.0,0.00028767,4]
[328673230,1717690244251,-684.27,0.00028767,4]
[328673232,1717690244261,-500.0,0.00028767,4]
[328673234,1717690244271,-600.8,0.00028767,4]
[328673236,1717690244280,-500.0,0.00028767,4]
[328673238,1717690244290,-536.79428574,0.00028767,4]
[328673240,1717690244299,-2000.0,0.00028767,21]
[328673242,1717690244308,-2000.0,0.00028767,21]
[328673244,1717690244318,-476.55554057,0.00028767,4]
[328673261,1717690244465,-80.40445943,0.00028767,4]
[328673263,1717690244474,-653.12,0.00028767,4]
[328673265,1717690244484,-1243.17135493,0.00028767,21]
[328673267,1717690244495,-87.08898246,0.00028767,21]
[328673269,1717690244504,-335.68409632,0.00028767,4]
[328673271,1717690244517,-164.31590368,0.00028767,4]
[328673273,1717690244526,-174.03470649,0.00028767,4]
[328673276,1717690244537,-325.96529351,0.00028767,4]
[328673278,1717690244546,-500.0,0.00028767,4]
[328673280,1717690244556,-2244.92,0.00028767,4]
[328673282,1717690244565,-325.15755347,0.00028767,4]
[328673284,1717690244577,-255.68445519,0.00028767,4]
[328673286,1717690244588,-274.27799134,0.00028767,4]
[328673288,1717690244597,-1742.80869701,0.00028767,4]
[328673290,1717690244608,-718.50130299,0.00028767,4]
[328673292,1717690244618,-165.37736907,0.00028767,4]
[328673294,1717690244627,-592.33969537,0.00028767,4]
[328673296,1717690244636,-500.0,0.00028767,4]
[328673298,1717690244645,-1765.26,0.00028767,4]
[328673300,1717690244654,-263.32125257,0.00028767,4]
[328673303,1717690244666,-358.8578928,0.00028767,4]
[328673304,1717690244677,-465.91016321,0.00028767,4]
[328673307,1717690244691,-493.49983679,0.00028767,4]
[328673309,1717690244702,-1577.26,0.00028767,4]
[328673314,1717690244744,-565.64,0.00028767,4]
[328673316,1717690244754,-500.0,0.00028767,4]
[328673318,1717690244764,-500.0,0.00028767,4]
[328673320,1717690244773,-500.0,0.00028767,4]
[328673322,1717690244783,-174.0,0.0002897,15]
[328673324,1717690244792,-174.0,0.0002898,15]
[328673326,1717690244801,-174.0,0.0002899,15]
[328673328,1717690244811,-2810.27293953,0.00029,13]
[328673334,1717690244851,-2402.42616078,0.00029,13]
[328673336,1717690244862,-17438.08262741,0.00029,13]
[328673338,1717690244871,-1244.90499999,0.00029,2]
[328673340,1717690244880,-65630.0,0.00029,2]
[328673342,1717690244889,-8473.82002214,0.00029,2]
[328673348,1717690244939,-931.77,0.00027661,10]
[328673350,1717690244948,-740.33249381,0.00029,2]
[328673352,1717690244958,-5816.29068619,0.00029,5]
[328673364,1717690245064,-679.75865772,0.00029,5]
[328673367,1717690245076,-444.91275082,0.00029,5]
[328673369,1717690245087,-8239.70748526,0.00029,5]
[328673371,1717690245099,-279512.51042001,0.00029,5]
[328673373,1717690245108,-485.13298,0.00029,2]
[328673375,1717690245117,-185.66972692,0.00029,2]
[328673377,1717690245126,-185.66972692,0.00029,2]
[328673379,1717690245135,-185.66972692,0.00029,2]
[328673381,1717690245144,-185.66972692,0.00029,2]
[328673383,1717690245154,-185.66972692,0.00029,2]
[328673385,1717690245163,-185.66972692,0.00029,2]
[328673387,1717690245172,-185.66972692,0.00029,2]
[328673388,1717690245182,-185.66972692,0.00029,2]
[328673389,1717690245192,-185.66972692,0.00029,2]
[328673390,1717690245202,-185.66972692,0.00029,2]
[328673391,1717690245211,-185.66972692,0.00029,2]
[328673392,1717690245220,-185.66972692,0.00029,2]
[328673393,1717690245229,-185.66972692,0.00029,2]
[328673394,1717690245239,-185.66972692,0.00029,2]
[328673395,1717690245248,-185.66972692,0.00029,2]
[328673396,1717690245257,-185.66972692,0.00029,2]
[328673397,1717690245266,-185.66972692,0.00029,2]
[328673398,1717690245275,-185.66972692,0.00029,2]
[328673399,1717690245284,-185.66972692,0.00029,2]
[328673400,1717690245293,-185.66972692,0.00029,2]
[328673401,1717690245303,-185.66972692,0.00029,2]
[328673402,1717690245312,-185.66972692,0.00029,2]
[328673403,1717690245321,-185.66972692,0.00029,2]
[328673404,1717690245330,-185.66972692,0.00029,2]
[328673405,1717690245340,-185.66972692,0.00029,2]
[328673406,1717690245349,-185.66972692,0.00029,2]
[328673407,1717690245358,-185.66972692,0.00029,2]
[328673408,1717690245367,-185.66972692,0.00029,2]
[328673409,1717690245376,-185.66972692,0.00029,2]
[328673410,1717690245385,-185.66972692,0.00029,2]
[328673411,1717690245395,-185.66972692,0.00029,2]
[328673412,1717690245405,-185.66972692,0.00029,2]
[328673413,1717690245414,-185.66972692,0.00029,2]
[328673414,1717690245424,-185.66972692,0.00029,2]
[328673415,1717690245433,-185.66972692,0.00029,2]
[328673416,1717690245442,-185.66972692,0.00029,2]
[328673417,1717690245452,-185.66972692,0.00029,2]
[328673418,1717690245461,-185.66972692,0.00029,2]
[328673419,1717690245470,-185.66972692,0.00029,2]
[328673420,1717690245480,-185.66972692,0.00029,2]
[328673421,1717690245489,-185.66972692,0.00029,2]
[328673422,1717690245498,-185.66972692,0.00029,2]
[328673423,1717690245507,-185.66972692,0.00029,2]
[328673424,1717690245516,-185.66972692,0.00029,2]
[328673425,1717690245525,-185.66972692,0.00029,2]
[328673426,1717690245534,-185.66972692,0.00029,2]
[328673427,1717690245543,-185.66972692,0.00029,2]
[328673428,1717690245552,-185.66972692,0.00029,2]
[328673429,1717690245561,-185.66972692,0.00029,2]
[328673430,1717690245570,-185.66972692,0.00029,2]
[328673431,1717690245579,-500.0,0.00029041,4]
[328673432,1717690245588,-500.0,0.00029041,4]
[328673433,1717690245597,-500.0,0.00029041,2]
[328673434,1717690245606,-500.0,0.00029041,4]
[328673435,1717690245615,-500.0,0.00029041,4]
[328673436,1717690245624,-500.0,0.00029041,4]
[328673437,1717690245633,-502.43707288,0.00029041,4]
[328673438,1717690245642,-500.0,0.00029041,4]
[328673439,1717690245652,-500.0,0.00029041,4]
[328673440,1717690245661,-534.58,0.00029041,4]
[328673441,1717690245670,-500.0,0.00029041,4]
[328673442,1717690245681,-513.77,0.00029041,4]
[328673443,1717690245691,-500.0,0.00029041,4]
[328673444,1717690245700,-500.0,0.00029041,4]
[328673445,1717690245711,-500.0,0.00029041,4]
[328673446,1717690245720,-500.0,0.00029041,4]
[328673447,1717690245731,-500.0,0.00029041,4]
[328673448,1717690245740,-588.58,0.00029041,4]
[328673449,1717690245749,-711.28,0.00029041,4]
[328673450,1717690245760,-941.68,0.00029041,4]
[328673451,1717690245769,-510.4,0.00029041,4]
[328673452,1717690245779,-500.0,0.00029041,4]
[328673453,1717690245788,-813.72,0.00029041,4]
[328673454,1717690245797,-735.93,0.00029041,4]
[328673455,1717690245806,-503.62,0.00029041,4]
[328673456,1717690245815,-500.0,0.00029041,4]
[328673457,1717690245825,-500.0,0.00029041,4]
[328673458,1717690245833,-500.0,0.00029041,4]
[328673459,1717690245843,-500.0,0.00029041,4]
[328673460,1717690245853,-500.0,0.00029041,4]
[328673461,1717690245862,-500.0,0.00029041,4]
[328673462,1717690245872,-724.47,0.00029041,4]
[328673463,1717690245882,-500.0,0.00029041,4]
[328673464,1717690245891,-500.0,0.00029041,4]
[328673465,1717690245900,-500.0,0.00029041,4]
[328673466,1717690245909,-990.45,0.00029041,4]
[328673467,1717690245919,-1073.26,0.00029041,4]
[328673468,1717690245928,-500.0,0.00029041,4]
[328673469,1717690245937,-500.0,0.00029041,4]
[328673470,1717690245946,-500.0,0.00029041,4]
[328673471,1717690245957,-606.04,0.00029041,4]
[328673472,1717690245967,-1067.38,0.00029041,4]
[328673473,1717690245976,-500.0,0.00029041,4]
[328673474,1717690245985,-884.85,0.00029041,4]
[328673475,1717690245995,-1056.24,0.00029041,4]
[328673476,1717690246004,-581.85,0.00029041,4]
[328673477,1717690246013,-500.0,0.00029041,4]
[328673478,1717690246023,-751.58,0.00029041,4]
[328673479,1717690246032,-500.0,0.00029041,4]
[328673480,1717690246042,-500.0,0.00029041,4]
[328673481,1717690246051,-1025.31,0.00029041,4]
[328673482,1717690246060,-620.2,0.00029041,4]
[328673483,1717690246070,-500.0,0.00029041,4]
[328673485,1717690246079,-500.0,0.00029041,4]
[328673487,1717690246089,-784.1,0.00029041,4]
[328673488,1717690246098,-515.35,0.00029041,4]
[328673489,1717690246107,-500.0,0.00029041,4]
[328673490,1717690246116,-684.27,0.00029041,4]
[328673491,1717690246125,-500.0,0.00029041,4]
[328673492,1717690246134,-600.8,0.00029041,4]
[328673493,1717690246144,-500.0,0.00029041,4]
[328673494,1717690246153,-653.12,0.00029041,4]
[328673495,1717690246163,-556.96,0.00029041,4]
[328673496,1717690246171,-500.0,0.00029041,4]
[328673497,1717690246182,-500.0,0.00029041,4]
[328673498,1717690246191,-500.0,0.00029041,4]
[328673499,1717690246200,-2244.92,0.00029041,4]
[328673500,1717690246211,-855.12,0.00029041,4]
[328673501,1717690246220,-2461.31,0.00029041,4]
[328673502,1717690246230,-500.0,0.00029041,4]
[328673503,1717690246239,-1765.26,0.00029041,4]
[328673504,1717690246249,-959.41,0.00029041,4]
[328673505,1717690246259,-1577.26,0.00029041,4]
[328673506,1717690246269,-565.64,0.00029041,4]
[328673508,1717690246279,-500.0,0.00029041,4]
[328673509,1717690246288,-500.0,0.00029041,4]
[328673510,1717690246298,-500.0,0.00029041,4]
[328673511,1717690246307,-178.5619182,0.00029205,30]
[328673512,1717690246316,-178.56191819,0.00029205,30]
[328673513,1717690246327,-178.56191819,0.00029205,30]
[328673514,1717690246336,-151.0,0.00029294,2]
[328673515,1717690246345,-500.0,0.00029315,4]
[328673516,1717690246354,-500.0,0.00029315,4]
[328673517,1717690246364,-500.0,0.00029315,2]
[328673518,1717690246373,-500.0,0.00029315,4]
[328673519,1717690246383,-500.0,0.00029315,4]
[328673520,1717690246393,-500.0,0.00029315,4]
[328673521,1717690246403,-500.0,0.00029315,4]
[328673522,1717690246412,-338.11695127,0.00029315,4]
[328673523,1717690246421,-534.58,0.00029315,4]
[328673524,1717690246431,-500.0,0.00029315,4]
[328673525,1717690246440,-513.77,0.00029315,4]
[328673526,1717690246449,-500.0,0.00029315,4]
[328673527,1717690246460,-500.0,0.00029315,4]
[328673528,1717690246470,-500.0,0.00029315,4]
[328673529,1717690246479,-500.0,0.00029315,4]
[328673530,1717690246488,-500.0,0.00029315,4]
[328673531,1717690246498,-588.58,0.00029315,4]
[328673532,1717690246507,-711.28,0.00029315,4]
[328673533,1717690246516,-941.68,0.00029315,4]
[328673534,1717690246526,-510.4,0.00029315,4]
[328673535,1717690246535,-500.0,0.00029315,4]
[328673536,1717690246544,-813.72,0.00029315,4]
[328673537,1717690246553,-735.93,0.00029315,4]
[328673538,1717690246563,-503.62,0.00029315,4]
[328673539,1717690246572,-500.0,0.00029315,4]
[328673540,1717690246581,-452.37551147,0.00029315,4]
[328673541,1717690246591,-500.0,0.00029315,4]
[328673542,1717690246600,-500.0,0.00029315,4]
[328673543,1717690246609,-500.0,0.00029315,4]
[328673544,1717690246618,-500.0,0.00029315,4]
[328673545,1717690246628,-724.47,0.00029315,4]
[328673546,1717690246638,-500.0,0.00029315,4]
[328673547,1717690246648,-500.0,0.00029315,4]
[328673548,1717690246658,-500.0,0.00029315,4]
[328673549,1717690246667,-990.45,0.00029315,4]
[328673550,1717690246682,-1073.26,0.00029315,4]
[328673551,1717690246691,-500.0,0.00029315,4]
[328673552,1717690246701,-500.0,0.00029315,4]
[328673553,1717690246712,-500.0,0.00029315,4]
[328673554,1717690246723,-606.04,0.00029315,4]
[328673555,1717690246732,-1067.38,0.00029315,4]
[328673556,1717690246742,-500.0,0.00029315,4]
[328673557,1717690246754,-884.85,0.00029315,4]
[328673558,1717690246764,-1056.24,0.00029315,4]
[328673559,1717690246773,-581.85,0.00029315,4]
[328673560,1717690246783,-500.0,0.00029315,4]
[328673561,1717690246793,-751.58,0.00029315,4]
[328673562,1717690246803,-500.0,0.00029315,4]
[328673563,1717690246812,-500.0,0.00029315,4]
[328673564,1717690246823,-1025.31,0.00029315,4]
[328673565,1717690246833,-500.0,0.00029315,4]
[328673566,1717690246843,-620.2,0.00029315,4]
[328673567,1717690246853,-500.0,0.00029315,4]
[328673568,1717690246864,-784.1,0.00029315,4]
[328673569,1717690246873,-515.35,0.00029315,4]
[328673570,1717690246883,-500.0,0.00029315,4]
[328673571,1717690246895,-684.27,0.00029315,4]
[328673572,1717690246904,-500.0,0.00029315,4]
[328673573,1717690246913,-600.8,0.00029315,4]
[328673574,1717690246923,-500.0,0.00029315,4]
[328673575,1717690246933,-653.12,0.00029315,4]
[328673576,1717690246943,-556.96,0.00029315,4]
[328673577,1717690246954,-107.76554581,0.00029315,4]
[328673578,1717690246968,-248.59852946,0.00029315,4]
[328673579,1717690246978,-500.0,0.00029315,4]
[328673580,1717690246987,-293.56208407,0.00029315,4]
[328673581,1717690246996,-2244.92,0.00029315,4]
[328673582,1717690247007,-855.12,0.00029315,4]
[328673583,1717690247016,-844.1192519,0.00029315,4]
[328673584,1717690247028,-1617.1907481,0.00029315,4]
[328673585,1717690247038,-500.0,0.00029315,4]
[328673586,1717690247048,-411.80234924,0.00029315,4]
[328673587,1717690247060,-1353.45765076,0.00029315,4]
[328673588,1717690247071,-959.41,0.00029315,4]
[328673589,1717690247081,-1577.26,0.00029315,4]
[328673590,1717690247091,-565.64,0.00029315,4]
[328673591,1717690247101,-500.0,0.00029315,4]
[328673592,1717690247111,-500.0,0.00029315,4]
[328673593,1717690247122,-500.0,0.00029315,4]
[328673594,1717690247132,-174.0,0.00029467,15]
[328673595,1717690247142,-174.0,0.00029477,15]
[328673596,1717690247152,-107181.5301416,0.00029489,2]
[328673597,1717690247163,-226.62818763,0.000295,3]
[328673598,1717690247173,-652.809035,0.000295,2]
[328673599,1717690247183,-152.0,0.0002958,4]
[328673600,1717690247193,-500.0,0.00029589,4]
[328673601,1717690247203,-500.0,0.00029589,4]
[328673602,1717690247214,-649.0507151,0.00029589,2]
[328673603,1717690247224,-500.0,0.00029589,4]
[328673604,1717690247234,-500.0,0.00029589,4]
[328673605,1717690247244,-500.0,0.00029589,4]
[328673606,1717690247254,-500.0,0.00029589,4]
[328673607,1717690247264,-534.58,0.00029589,4]
[328673608,1717690247273,-540.87617068,0.00029589,4]
[328673609,1717690247284,-513.77,0.00029589,4]
[328673610,1717690247295,-500.0,0.00029589,4]
[328673611,1717690247305,-500.0,0.00029589,4]
[328673612,1717690247314,-500.0,0.00029589,4]
[328673613,1717690247324,-500.0,0.00029589,4]
[328673614,1717690247334,-500.0,0.00029589,4]
[328673615,1717690247344,-588.58,0.00029589,4]
[328673616,1717690247354,-711.28,0.00029589,4]
[328673617,1717690247364,-941.68,0.00029589,4]
[328673618,1717690247375,-510.4,0.00029589,4]
[328673619,1717690247384,-500.0,0.00029589,4]
[328673620,1717690247395,-813.72,0.00029589,4]
[328673621,1717690247405,-735.93,0.00029589,4]
[328673622,1717690247414,-503.62,0.00029589,4]
[328673623,1717690247425,-500.0,0.00029589,4]
[328673624,1717690247435,-500.0,0.00029589,4]
[328673625,1717690247445,-500.0,0.00029589,4]
[328673626,1717690247455,-500.0,0.00029589,4]
[328673627,1717690247465,-500.0,0.00029589,4]
[328673628,1717690247475,-724.47,0.00029589,4]
[328673629,1717690247484,-500.0,0.00029589,4]
[328673630,1717690247494,-500.0,0.00029589,4]
[328673631,1717690247504,-500.0,0.00029589,4]
[328673632,1717690247514,-990.45,0.00029589,4]
[328673633,1717690247524,-1073.26,0.00029589,4]
[328673634,1717690247534,-500.0,0.00029589,4]
[328673635,1717690247544,-500.0,0.00029589,4]
[328673636,1717690247554,-500.0,0.00029589,4]
[328673637,1717690247564,-606.04,0.00029589,4]
[328673638,1717690247574,-1067.38,0.00029589,4]
[328673639,1717690247584,-500.0,0.00029589,4]
[328673640,1717690247594,-884.85,0.00029589,4]
[328673641,1717690247604,-1056.24,0.00029589,4]
[328673642,1717690247613,-581.85,0.00029589,4]
[328673643,1717690247623,-500.0,0.00029589,4]
[328673644,1717690247633,-751.58,0.00029589,4]
[328673645,1717690247642,-500.0,0.00029589,4]
[328673646,1717690247652,-500.0,0.00029589,4]
[328673647,1717690247662,-1025.31,0.00029589,4]
[328673648,1717690247673,-620.2,0.00029589,4]
[328673649,1717690247685,-521.47072367,0.00029589,4]
[328673650,1717690247695,-500.0,0.00029589,4]
[328673651,1717690247705,-784.1,0.00029589,4]
[328673652,1717690247716,-515.35,0.00029589,4]
[328673653,1717690247726,-500.0,0.00029589,4]
[328673654,1717690247736,-684.27,0.00029589,4]
[328673655,1717690247745,-500.0,0.00029589,4]
[328673656,1717690247756,-600.8,0.00029589,4]
[328673657,1717690247767,-500.0,0.00029589,4]
[328673658,1717690247778,-653.12,0.00029589,4]
[328673659,1717690247787,-556.96,0.00029589,4]
[328673660,1717690247797,-500.0,0.00029589,4]
[328673661,1717690247807,-2244.92,0.00029589,4]
[328673662,1717690247817,-855.12,0.00029589,4]
[328673663,1717690247826,-2461.31,0.00029589,4]
[328673664,1717690247836,-500.0,0.00029589,4]
[328673665,1717690247847,-1765.26,0.00029589,4]
[328673666,1717690247856,-959.41,0.00029589,4]
[328673667,1717690247866,-1577.26,0.00029589,4]
[328673668,1717690247876,-565.64,0.00029589,4]
[328673669,1717690247886,-500.0,0.00029589,4]
[328673670,1717690247896,-500.0,0.00029589,4]
[328673671,1717690247906,-171.7574236,0.00029589,4]
[328673672,1717690247915,-979.213552,0.000296,2]
[328673673,1717690247926,-250000.0,0.000296,2]
[328673674,1717690247935,-178.5619182,0.00029616,30]
[328673675,1717690247945,-178.56191819,0.00029616,30]
[328673676,1717690247956,-178.56191819,0.00029616,30]
[328673677,1717690247966,-169.0255357,0.00029673,2]
[328673678,1717690247976,-313.81979341,0.00029699,2]
[328673679,1717690247986,-166.66666667,0.00029699,2]
[328673680,1717690247995,-2542.0,0.000297,2]
[328673681,1717690248005,-280.0,0.000297,2]
[328673682,1717690248016,-1305.61807,0.000297,2]
[328673683,1717690248025,-747.0,0.000297,2]
[328673684,1717690248035,-269.66,0.0002974,2]
[328673685,1717690248046,-500.0,0.0002976,2]
[328673686,1717690248055,-200.0,0.0002976,2]
[328673687,1717690248065,-150.0,0.00029778,2]
[328673688,1717690248075,-1632.022588,0.000298,2]
[328673689,1717690248085,-2284.831623,0.000298,2]
[328673690,1717690248095,-374.03622051,0.00029801,2]
[328673691,1717690248106,-153.32595174,0.00029809,2]
[328673692,1717690248116,-155.08604124,0.00029814,2]
[328673693,1717690248126,-154.0386197,0.00029822,2]
[328673694,1717690248136,-154.0386197,0.0002983,2]
[328673695,1717690248146,-154.22504777,0.00029839,2]
[328673696,1717690248157,-157.93267061,0.00029846,2]
[328673697,1717690248167,-651.65468868,0.00029857,2]
[328673698,1717690248177,-500.0,0.00029863,4]
[328673699,1717690248186,-479.29,0.00029863,4]
[328673700,1717690248196,-500.0,0.00029863,4]
[328673701,1717690248207,-500.0,0.00029863,4]
[328673702,1717690248216,-500.0,0.00029863,4]
[328673703,1717690248226,-500.0,0.00029863,4]
[328673704,1717690248237,-534.58,0.00029863,4]
[328673705,1717690248247,-513.77,0.00029863,4]
[328673706,1717690248257,-500.0,0.00029863,4]
[328673707,1717690248267,-500.0,0.00029863,4]
[328673708,1717690248277,-500.0,0.00029863,4]
[328673709,1717690248288,-500.0,0.00029863,4]
[328673710,1717690248298,-500.0,0.00029863,4]
[328673711,1717690248308,-588.58,0.00029863,4]
[328673712,1717690248317,-711.28,0.00029863,4]
[328673713,1717690248327,-941.68,0.00029863,4]
[328673714,1717690248337,-510.4,0.00029863,4]
[328673715,1717690248347,-500.0,0.00029863,4]
[328673716,1717690248357,-813.72,0.00029863,4]
[328673717,1717690248367,-735.93,0.00029863,4]
[328673718,1717690248378,-503.62,0.00029863,4]
[328673719,1717690248387,-500.0,0.00029863,4]
[328673720,1717690248398,-500.0,0.00029863,4]
[328673721,1717690248408,-500.0,0.00029863,4]
[328673722,1717690248418,-500.0,0.00029863,4]
[328673723,1717690248428,-500.0,0.00029863,4]
[328673724,1717690248438,-724.47,0.00029863,4]
[328673725,1717690248448,-500.0,0.00029863,4]
[328673726,1717690248460,-500.0,0.00029863,4]
[328673727,1717690248470,-500.0,0.00029863,4]
[328673728,1717690248479,-990.45,0.00029863,4]
[328673729,1717690248489,-1073.26,0.00029863,4]
[328673730,1717690248499,-500.0,0.00029863,4]
[328673731,1717690248509,-500.0,0.00029863,4]
[328673732,1717690248519,-500.0,0.00029863,4]
[328673733,1717690248529,-606.04,0.00029863,4]
[328673734,1717690248539,-1067.38,0.00029863,4]
[328673735,1717690248549,-461.82533957,0.00029863,4]
[328673736,1717690248558,-884.85,0.00029863,4]
[328673737,1717690248568,-1056.24,0.00029863,4]
[328673738,1717690248578,-581.85,0.00029863,4]
[328673739,1717690248588,-500.0,0.00029863,4]
[328673740,1717690248598,-751.58,0.00029863,4]
[328673741,1717690248608,-500.0,0.00029863,4]
[328673742,1717690248619,-500.0,0.00029863,4]
[328673743,1717690248629,-1025.31,0.00029863,4]
[328673744,1717690248640,-620.2,0.00029863,4]
[328673745,1717690248650,-500.0,0.00029863,4]
[328673746,1717690248660,-784.1,0.00029863,4]
[328673747,1717690248671,-515.35,0.00029863,4]
[328673748,1717690248686,-500.0,0.00029863,4]
[328673749,1717690248696,-500.0,0.00029863,4]
[328673750,1717690248707,-600.8,0.00029863,4]
[328673751,1717690248720,-500.0,0.00029863,4]
[328673752,1717690248730,-653.12,0.00029863,4]
[328673753,1717690248740,-556.96,0.00029863,4]
[328673754,1717690248751,-500.0,0.00029863,4]
[328673755,1717690248761,-2244.92,0.00029863,4]
[328673756,1717690248772,-855.12,0.00029863,4]
[328673757,1717690248782,-2461.31,0.00029863,4]
[328673758,1717690248792,-500.0,0.00029863,4]
[328673759,1717690248802,-1765.26,0.00029863,4]
[328673760,1717690248812,-959.41,0.00029863,4]
[328673761,1717690248823,-1577.26,0.00029863,4]
[328673762,1717690248832,-565.64,0.00029863,4]
[328673763,1717690248842,-500.0,0.00029863,4]
[328673764,1717690248852,-500.0,0.00029863,4]
[328673765,1717690248862,-176.32587095,0.00029868,2]
[328673766,1717690248872,-160.36007581,0.00029876,2]
[328673767,1717690248882,-153.32595174,0.00029878,2]
[328673768,1717690248892,-374.03622051,0.00029879,2]
[328673769,1717690248902,-500.0,0.00029891,3]
[328673770,1717690248912,-388.79274591,0.00029894,2]
[328673771,1717690248922,-2840.30857931,0.000299,2]
[328673772,1717690248932,-500.0,0.000299,3]
[328673773,1717690248942,-500.0,0.000299,3]
[328673774,1717690248952,-155.12317944,0.000299,2]
[328673775,1717690248963,-251.0,0.000299,5]
[328673776,1717690248972,-157.05241343,0.000299,7]
[328673777,1717690248982,-157.05241343,0.000299,7]
[328673778,1717690248992,-157.05241343,0.000299,7]
[328673779,1717690249001,-157.55,0.000299,7]
[328673780,1717690249011,-157.14616343,0.000299,7]
[328673781,1717690249021,-157.14616343,0.000299,7]
[328673782,1717690249030,-157.14616343,0.000299,7]
[328673783,1717690249040,-157.14616343,0.000299,7]
[328673784,1717690249050,-157.14616343,0.000299,7]
[328673785,1717690249060,-157.14616343,0.000299,7]
[328673786,1717690249070,-157.14616343,0.000299,7]
[328673787,1717690249079,-157.14616343,0.000299,7]
[328673788,1717690249089,-157.14616343,0.000299,7]
[328673789,1717690249098,-157.14616343,0.000299,7]
[328673790,1717690249108,-1877.05611359,0.000299,15]
[328673791,1717690249118,-157.14616343,0.000299,7]
[328673792,1717690249128,-157.14616343,0.000299,7]
[328673793,1717690249138,-157.14616343,0.000299,7]
[328673794,1717690249147,-78.13475021,0.000299,7]
[328673795,1717690249411,2402.42616078,0.00014,2]
[328673796,1717690249427,-815.94047023,0.00014,2]
[328673797,1717690249438,-25152.30969358,0.00014,2]
[328673798,1717690249450,-218669.70143577,0.00014,2]
[328673799,1717690249462,-2426.235154,0.00014,2]
[328673800,1717690249502,-365.56917696,0.00014,2]
[328673801,1717690249513,-6039.21723028,0.00014,2]
[328673802,1717690249525,-2271.28224305,0.00014,2]
[328673803,1717690249536,-15415.84,0.00014,2]
[328673804,1717690249655,-667.2379924,0.00014,2]
[328673805,1717690249666,-7397.07641401,0.00014,2]
[328673808,1717690362447,218.51118875,0.0003,40]
[328673818,1717690530615,179.75,0.0002503,120]
[328673849,1717691431565,-155.0,0.00013706,2]
[328673850,1717691431575,-734.60888089,0.00013706,2]
[328673851,1717691431649,-57.35844858,0.00013706,2]
[328673852,1717691431659,-502.0,0.00013707,2]
[328673853,1717691431668,-4106.4357214,0.00014,2]
[328673854,1717691431677,-500.0,0.000185,2]
[328673855,1717691431687,-1441.64664957,0.00018773,2]
[328673856,1717691431696,-499.99,0.00019452,2]
[328673857,1717691431705,-150.99,0.00019726,2]
[328673858,1717691431715,-257.82046593,0.0002,2]
[328673859,1717691431724,-801.87,0.0002,2]
[328673860,1717691431734,-3391.82,0.0002,2]
[328673861,1717691431743,-260.95497175,0.0002,2]
[328673862,1717691431753,-549.09326146,0.00020024,2]
[328673863,1717691431762,-301.35,0.00021242,2]
[328673864,1717691431771,-1000.0,0.000219,2]